lending/lending_fUSD_20250918
["ID","MTS","AMOUNT","RATE_DAILY","PERIOD"]
[385959728,1758155443355,-400.0,0.00021917,2]
[385959729,1758155443364,-620.94,0.00021917,2]
[385959730,1758155443374,-400.0,0.00021917,2]
[385959731,1758155443384,-620.94,0.00021917,2]
[385959732,1758155443393,-400.0,0.00021917,2]
[385959733,1758155443403,-620.94,0.00021917,2]
[385959734,1758155443413,-620.94,0.00021917,2]
[385959735,1758155443423,-400.0,0.00021917,2]
[385959736,1758155443432,-400.0,0.00021917,2]
[385959737,1758155443442,-400.0,0.00021917,2]
[385959738,1758155443452,-400.0,0.00021917,2]
[385959739,1758155443462,-400.0,0.00021917,2]
[385959740,1758155443471,-400.0,0.00021917,2]
[385959741,1758155443481,-400.0,0.00021917,2]
[385959742,1758155443491,-527.56378808,0.00021917,2]
[385959743,1758155443500,-449.71923181,0.00021917,2]
[385959744,1758155443510,-400.0,0.00021917,2]
[385959745,1758155443519,-400.0,0.00021917,2]
[385959746,1758155443529,-400.0,0.00021917,2]
[385959747,1758155443538,-400.0,0.00021917,2]
[385959748,1758155443547,-400.0,0.00021917,2]
[385959749,1758155443557,-500.0,0.00021917,2]
[385959750,1758155443567,-400.0,0.00021917,2]
[385959751,1758155443576,-400.0,0.00021917,2]
[385959752,1758155443585,-400.0,0.00021917,2]
[385959753,1758155443595,-400.0,0.00021917,2]
[385959754,1758155443605,-403.82077752,0.00021917,2]
[385959755,1758155443614,-400.0,0.00021917,2]
[385959756,1758155443623,-400.0,0.00021917,2]
[385959757,1758155443633,-400.0,0.00021917,2]
[385959758,1758155443642,-400.0,0.00021917,2]
[385959759,1758155443651,-400.0,0.00021917,2]
[385959760,1758155443660,-400.0,0.00021917,2]
[385959761,1758155443670,-400.0,0.00021917,2]
[385959762,1758155443679,-400.0,0.00021917,2]
[385959763,1758155443688,-400.0,0.00021917,2]
[385959764,1758155443698,-400.0,0.00021917,2]
[385959765,1758155443708,-400.0,0.00021917,2]
[385959766,1758155443717,-400.0,0.00021917,2]
[385959767,1758155443726,-291.51964996,0.00021917,2]
[385959768,1758155443835,-108.48035004,0.00021917,2]
[385959769,1758155443845,-400.0,0.00021917,2]
[385959770,1758155443855,-400.0,0.00021917,2]
[385959771,1758155443865,-151.0,0.00021917,2]
[385959772,1758155443876,-151.0,0.00021917,2]
[385959773,1758155443886,-400.0,0.00021917,2]
[385959774,1758155443896,-400.0,0.00021917,2]
[385959775,1758155443905,-400.0,0.00021917,2]
[385959776,1758155443915,-151.0,0.00021917,2]
[385959777,1758155443924,-151.0,0.00021917,2]
[385959778,1758155443933,-151.0,0.00021917,2]
[385959779,1758155443943,-151.0,0.00021917,2]
[385959780,1758155443953,-151.0,0.00021917,2]
[385959781,1758155443963,-151.0,0.00021917,2]
[385959782,1758155443972,-400.0,0.00021917,2]
[385959783,1758155443982,-400.0,0.00021917,2]
[385959784,1758155443992,-400.0,0.00021917,2]
[385959785,1758155444003,-400.0,0.00021917,2]
[385959786,1758155444013,-400.0,0.00021917,2]
[385959787,1758155444023,-400.0,0.00021917,2]
[385959788,1758155444032,-400.0,0.00021917,2]
[385959789,1758155444042,-401.0206208,0.00021917,2]
[385959790,1758155444051,-402.1712218,0.00021917,2]
[385959791,1758155444061,-400.0,0.00021917,2]
[385959792,1758155444071,-400.0,0.00021917,2]
[385959793,1758155444081,-400.0,0.00021917,2]
[385959794,1758155444092,-400.0,0.00021917,2]
[385959795,1758155444102,-400.0,0.00021917,2]
[385959796,1758155444111,-400.0,0.00021917,2]
[385959797,1758155444120,-400.0,0.00021917,2]
[385959798,1758155444130,-400.0,0.00021917,2]
[385959799,1758155444140,-400.0,0.00021917,2]
[385959800,1758155444149,-309.67211773,0.00021917,2]
[385959801,1758155444167,-90.32788227,0.00021917,2]
[385959802,1758155444177,-400.0,0.00021917,2]
[385959803,1758155444187,-151.0,0.00021917,2]
[385959804,1758155444196,-151.0,0.00021917,2]
[385959805,1758155444206,-400.0,0.00021917,2]
[385959806,1758155444215,-400.0,0.00021917,2]
[385959807,1758155444225,-400.0,0.00021917,2]
[385959808,1758155444234,-400.0,0.00021917,2]
[385959809,1758155444243,-407.74759343,0.00021917,2]
[385959810,1758155444253,-400.0,0.00021917,2]
[385959811,1758155444262,-374.45094842,0.00021917,2]
[385959812,1758155444277,-25.54905158,0.00021917,2]
[385959813,1758155444286,-400.0,0.00021917,2]
[385959814,1758155444296,-400.0,0.00021917,2]
[385959815,1758155444306,-451.84627961,0.00021917,2]
[385959816,1758155444315,-400.0,0.00021917,2]
[385959817,1758155444324,-402.23411152,0.00021917,2]
[385959818,1758155444334,-400.0,0.00021917,2]
[385959819,1758155444343,-400.0,0.00021917,2]
[385959820,1758155444353,-400.0,0.00021917,2]
[385959821,1758155444362,-400.0,0.00021917,2]
[385959822,1758155444371,-400.0,0.00021917,2]
[385959823,1758155444381,-400.0,0.00021917,2]
[385959824,1758155444390,-400.0,0.00021917,2]
[385959825,1758155444400,-400.0,0.00021917,2]
[385959826,1758155444409,-400.0,0.00021917,2]
[385959827,1758155444418,-400.0,0.00021917,2]
[385959828,1758155444428,-400.0,0.00021917,2]
[385959829,1758155444437,-400.0,0.00021917,2]
[385959830,1758155444448,-400.0,0.00021917,2]
[385959831,1758155444457,-425.25,0.00021917,2]
[385959832,1758155444467,-403.34177121,0.00021917,2]
[385959833,1758155444476,-400.0,0.00021917,2]
[385959834,1758155444486,-400.0,0.00021917,2]
[385959835,1758155444495,-403.07743979,0.00021917,2]
[385959836,1758155444505,-400.0,0.00021917,2]
[385959837,1758155444514,-406.15664177,0.00021917,2]
[385959838,1758155444523,-400.0,0.00021917,2]
[385959839,1758155444533,-400.0,0.00021917,2]
[385959840,1758155444542,-400.0,0.00021917,2]
[385959841,1758155444551,-400.0,0.00021917,2]
[385959842,1758155444561,-472.05,0.00021917,2]
[385959843,1758155444572,-400.0,0.00021917,2]
[385959844,1758155444582,-400.0,0.00021917,2]
[385959845,1758155444592,-400.0,0.00021917,2]
[385959846,1758155444602,-400.0,0.00021917,2]
[385959847,1758155444611,-400.0,0.00021917,2]
[385959848,1758155444620,-400.0,0.00021917,2]
[385959849,1758155444630,-400.0,0.00021917,2]
[385959850,1758155444639,-400.0,0.00021917,2]
[385959851,1758155444649,-402.61942414,0.00021917,2]
[385959852,1758155444658,-400.0,0.00021917,2]
[385959853,1758155444667,-400.0,0.00021917,2]
[385959854,1758155444677,-400.0,0.00021917,2]
[385959855,1758155444688,-405.63570869,0.00021917,2]
[385959856,1758155444697,-400.0,0.00021917,2]
[385959857,1758155444706,-400.0,0.00021917,2]
[385959858,1758155444716,-400.0,0.00021917,2]
[385959859,1758155444726,-400.0,0.00021917,2]
[385959860,1758155444735,-400.0,0.00021917,2]
[385959861,1758155444745,-400.0,0.00021917,2]
[385959862,1758155444754,-400.0,0.00021917,2]
[385959863,1758155444764,-400.0,0.00021917,2]
[385959864,1758155444773,-400.0,0.00021917,2]
[385959865,1758155444783,-400.0,0.00021917,2]
[385959866,1758155444793,-400.0,0.00021917,2]
[385959867,1758155444802,-201.043549,0.00021917,2]
[385959868,1758155444812,-151.0,0.00021917,2]
[385959869,1758155444821,-400.0,0.00021917,2]
[385959870,1758155444831,-201.043549,0.00021917,2]
[385959871,1758155444842,-400.0,0.00021917,2]
[385959872,1758155444851,-201.043549,0.00021917,2]
[385959873,1758155444860,-201.043549,0.00021917,2]
[385959874,1758155444870,-201.043549,0.00021917,2]
[385959875,1758155444879,-201.043549,0.00021917,2]
[385959876,1758155444890,-201.043549,0.00021917,2]
[385959877,1758155444899,-201.043549,0.00021917,2]
[385959878,1758155444908,-400.0,0.00021917,2]
[385959879,1758155444918,-400.0,0.00021917,2]
[385959880,1758155444927,-400.0,0.00021917,2]
[385959881,1758155444936,-201.043549,0.00021917,2]
[385959882,1758155444945,-201.043549,0.00021917,2]
[385959883,1758155444955,-201.043549,0.00021917,2]
[385959884,1758155444965,-201.043549,0.00021917,2]
[385959885,1758155444975,-201.043549,0.00021917,2]
[385959886,1758155444984,-486.44160315,0.00021917,2]
[385959887,1758155444993,-201.043549,0.00021917,2]
[385959888,1758155445006,-201.043549,0.00021917,2]
[385959889,1758155445015,-406.17071492,0.00021917,2]
[385959890,1758155445024,-400.0,0.00021917,2]
[385959891,1758155445034,-201.043549,0.00021917,2]
[385959892,1758155445043,-201.043549,0.00021917,2]
[385959893,1758155445052,-201.043549,0.00021917,2]
[385959894,1758155445062,-400.0,0.00021917,2]
[385959895,1758155445071,-201.043549,0.00021917,2]
[385959896,1758155445081,-400.0,0.00021917,2]
[385959897,1758155445091,-201.043541,0.00021917,2]
[385959898,1758155445101,-151.0,0.00021917,2]
[385959899,1758155445110,-400.0,0.00021917,2]
[385959900,1758155445119,-400.0,0.00021917,2]
[385959901,1758155445129,-400.0,0.00021917,2]
[385959902,1758155445138,-151.0,0.00021917,2]
[385959903,1758155445147,-151.0,0.00021917,2]
[385959904,1758155445157,-151.0,0.00021917,2]
[385959905,1758155445167,-151.0,0.00021917,2]
[385959906,1758155445176,-151.0,0.00021917,2]
[385959907,1758155445416,-400.0,0.00021917,2]
[385959908,1758155445489,-151.0,0.00021917,2]
[385959909,1758155445499,-400.0,0.00021917,2]
[385959910,1758155445508,-400.0,0.00021917,2]
[385959911,1758155445517,-400.0,0.00021917,2]
[385959912,1758155445527,-151.0,0.00021917,2]
[385959913,1758155445536,-151.0,0.00021917,2]
[385959914,1758155445545,-388.04054091,0.00021917,2]
[385959915,1758155445555,-400.0,0.00021917,2]
[385959916,1758155445564,-400.0,0.00021917,2]
[385959917,1758155445574,-400.0,0.00021917,2]
[385959918,1758155445583,-400.0,0.00021917,2]
[385959919,1758155445592,-151.0,0.00021917,2]
[385959920,1758155445602,-400.0,0.00021917,2]
[385959921,1758155445612,-111.15673963,0.00021917,2]
[385959939,1758155446927,-288.84326037,0.00021917,2]
[385959940,1758155446938,-154.381254,0.00021917,2]
[385959941,1758155446948,-239.73114581,0.00021917,2]
[385959949,1758156047790,1000.0,0.00030136,120]
[385959950,1758156062624,1008.41904943,0.00030136,120]
[385959954,1758156310636,150.0,0.00019726,2]
[385959955,1758156310913,150.0,0.00019726,2]
[385959956,1758156311058,150.0,0.00019726,2]
[385959957,1758156316337,150.0,0.00019726,2]
[385959958,1758156318410,150.0,0.00019726,2]
[385959959,1758156324391,150.0,0.00019726,2]
[385959960,1758156331020,150.0,0.00019726,2]
[385959961,1758156332185,150.0,0.00019726,2]
[385959962,1758156332931,150.0,0.00019726,2]
[385959964,1758156461536,159.78,0.00010243,2]
[385959965,1758156461806,159.78,0.00013657,2]
[385959966,1758156462003,159.78,0.00017072,2]
[385959968,1758156631011,165.0,0.000301,120]
[385959972,1758156632271,-152.22567578,0.00020064,2]
[385959973,1758156632280,-6608.08620711,0.00020164,2]
[385959974,1758156632290,-150.0,0.00020164,4]
[385959975,1758156632299,-150.0,0.00020274,4]
[385959976,1758156632309,-1152.74,0.00020384,2]
[385959977,1758156632319,-1200.0,0.00020398,2]
[385959978,1758156632328,-2188.19,0.00020399,2]
[385959979,1758156632338,-666.0,0.00020438,3]
[385959980,1758156632349,-300.0,0.00020455,2]
[385959981,1758156632358,-300.0,0.00020456,2]
[385959982,1758156632367,-150.0,0.00020457,4]
[385959983,1758156632377,-150.0,0.00020457,4]
[385959984,1758156632386,-159.78,0.00020486,2]
[385959985,1758156632396,-150.0,0.00020486,7]
[385959986,1758156632405,-2021.4,0.00020509,2]
[385959987,1758156632415,-225.36,0.00020539,2]
[385959988,1758156632424,-1200.0,0.00020601,2]
[385959989,1758156632434,-150.0,0.00020603,4]
[385959990,1758156632443,-6904.89,0.00020604,2]
[385959991,1758156632453,-1000.0,0.00020604,2]
[385959992,1758156632463,-10828.6,0.00020635,2]
[385959993,1758156632472,-156.29,0.00020637,2]
[385959994,1758156632482,-200.0,0.00020651,2]
[385959995,1758156632491,-153.28,0.00020671,2]
[385959996,1758156632501,-150.0,0.0002068,2]
[385959997,1758156632511,-250.0,0.00020689,2]
[385959998,1758156632521,-8565.75555911,0.0002082,2]
[385959999,1758156632531,-248.71531821,0.0002082,2]
[385960000,1758156632540,-150.0,0.00020822,4]
[385960001,1758156632550,-150.0,0.00020822,4]
[385960002,1758156632560,-150.0,0.00020822,4]
[385960004,1758156632570,-3474.31876607,0.00020875,2]
[385960006,1758156632580,-220.7,0.00021001,2]
[385960008,1758156632589,-168.0,0.00021028,2]
[385960010,1758156632599,-338.0,0.0002103,2]
[385960012,1758156632609,-150.0,0.00021041,4]
[385960014,1758156632618,-168.13,0.00021106,2]
[385960016,1758156632628,-150.0,0.00021187,4]
[385960018,1758156632637,-150.0,0.00021187,4]
[385960021,1758156632648,-152.22567578,0.00021319,2]
[385960023,1758156632657,-804.63,0.00021356,2]
[385960025,1758156632667,-356.05832145,0.00021356,2]
[385960101,1758156633462,-448.57167855,0.00021356,2]
[385960102,1758156633472,-472.26,0.00021356,2]
[385960103,1758156633482,-804.63,0.00021356,2]
[385960104,1758156633492,-472.26,0.00021356,2]
[385960105,1758156633501,-472.26,0.00021356,2]
[385960106,1758156633511,-472.26,0.00021356,2]
[385960107,1758156633521,-472.26,0.00021356,2]
[385960108,1758156633530,-504.77,0.00021356,2]
[385960109,1758156633540,-1128.11,0.00021356,2]
[385960110,1758156633549,-150.0,0.0002137,4]
[385960111,1758156633559,-804.63,0.000214,2]
[385960112,1758156633569,-804.63,0.000214,2]
[385960113,1758156633578,-804.63,0.000214,2]
[385960114,1758156633588,-804.63,0.000214,2]
[385960115,1758156633598,-1152.74,0.00021403,2]
[385960116,1758156633607,-500.0,0.00021419,2]
[385960117,1758156633617,-150.0,0.00021419,2]
[385960118,1758156633627,-150.0,0.00021419,2]
[385960119,1758156633636,-150.0,0.00021419,2]
[385960120,1758156633645,-500.0,0.00021419,2]
[385960121,1758156633655,-150.0,0.00021419,2]
[385960122,1758156633665,-150.0,0.00021419,2]
[385960123,1758156633675,-150.0,0.00021419,2]
[385960124,1758156633685,-150.0,0.00021419,2]
[385960125,1758156633694,-500.0,0.00021419,2]
[385960126,1758156633704,-154.29275894,0.00021419,2]
[385960127,1758156633714,-151.42784948,0.00021419,2]
[385960128,1758156633723,-150.0,0.00021419,2]
[385960129,1758156633733,-500.0,0.00021419,2]
[385960130,1758156633742,-150.0,0.00021419,2]
[385960131,1758156633752,-151.0,0.00021419,2]
[385960132,1758156633762,-151.0,0.00021419,2]
[385960133,1758156633771,-322.6107,0.00021419,2]
[385960134,1758156633780,-151.0,0.00021419,2]
[385960135,1758156633790,-151.0,0.00021419,2]
[385960136,1758156633799,-151.0,0.00021419,2]
[385960137,1758156633809,-151.0,0.00021419,2]
[385960138,1758156633820,-151.0,0.00021419,2]
[385960139,1758156633831,-500.0,0.00021419,2]
[385960140,1758156633840,-151.0,0.00021419,2]
[385960141,1758156633850,-500.0,0.00021419,2]
[385960142,1758156633860,-151.0,0.00021419,2]
[385960143,1758156633869,-151.0,0.00021419,2]
[385960144,1758156633879,-500.0,0.00021419,2]
[385960145,1758156633889,-500.0,0.00021419,2]
[385960146,1758156633898,-500.0,0.00021419,2]
[385960147,1758156633911,-500.0,0.00021419,2]
[385960148,1758156633921,-269.54820062,0.00021419,2]
[385960149,1758156633930,-151.0,0.00021419,2]
[385960150,1758156633940,-510.28852536,0.00021419,2]
[385960151,1758156633949,-500.0,0.00021419,2]
[385960152,1758156633959,-500.0,0.00021419,2]
[385960153,1758156633968,-500.0,0.00021419,2]
[385960154,1758156633978,-500.0,0.00021419,2]
[385960155,1758156633988,-160.0,0.00021419,2]
[385960156,1758156633998,-500.0,0.00021419,2]
[385960157,1758156634008,-500.0,0.00021419,2]
[385960158,1758156634017,-151.0,0.00021419,2]
[385960159,1758156634027,-151.0,0.00021419,2]
[385960160,1758156634037,-151.0,0.00021419,2]
[385960161,1758156634047,-646.65982734,0.00021419,2]
[385960162,1758156634057,-151.0,0.00021419,2]
[385960163,1758156634067,-311.24013731,0.00021419,2]
[385960164,1758156634077,-151.0,0.00021419,2]
[385960165,1758156634086,-151.0,0.00021419,2]
[385960166,1758156634097,-177.62542427,0.00021419,2]
[385960167,1758156634106,-151.0,0.00021419,2]
[385960168,1758156634117,-151.0,0.00021419,2]
[385960169,1758156634126,-249.45465941,0.00021419,2]
[385960170,1758156634135,-302.0,0.00021419,2]
[385960171,1758156634145,-151.0,0.00021419,2]
[385960172,1758156634155,-151.0,0.00021419,2]
[385960173,1758156634165,-151.0,0.00021419,2]
[385960174,1758156634175,-321.04118707,0.00021419,2]
[385960175,1758156634187,-12805.8429,0.00021432,2]
[385960176,1758156634201,-150.0,0.00021479,4]
[385960177,1758156634211,-161.14663564,0.00021515,2]
[385960178,1758156634220,-514.0,0.00021518,2]
[385960179,1758156634230,-791.97096572,0.00021531,2]
[385960180,1758156634240,-325.0,0.000216,2]
[385960181,1758156634250,-196.04,0.00021617,2]
[385960182,1758156634260,-196.04,0.00021638,2]
[385960183,1758156634270,-168.0,0.00021661,2]
[385960184,1758156634279,-1000.0,0.00021671,2]
[385960185,1758156634289,-150.0,0.00021681,2]
[385960186,1758156634299,-500.0,0.00021693,2]
[385960187,1758156634309,-150.0,0.00021693,2]
[385960188,1758156634319,-150.0,0.00021693,2]
[385960189,1758156634328,-500.0,0.00021693,2]
[385960190,1758156634338,-150.0,0.00021693,2]
[385960191,1758156634347,-500.0,0.00021693,2]
[385960192,1758156634357,-150.0,0.00021693,2]
[385960193,1758156634371,-500.0,0.00021693,2]
[385960194,1758156634381,-150.0,0.00021693,2]
[385960195,1758156634390,-791.97096572,0.00021716,2]
[385960196,1758156634400,-277.3121,0.00021717,2]
[385960197,1758156634410,-168.0,0.00021732,2]
[385960198,1758156634420,-200.0,0.00021742,2]
[385960199,1758156634429,-1000.0,0.00021758,2]
[385960200,1758156634439,-514.13964029,0.00021758,2]
[385960201,1758156634449,-150.0,0.00021783,2]
[385960202,1758156634458,-150.0,0.00021783,2]
[385960203,1758156634468,-626.59526418,0.00021795,2]
[385960204,1758156634477,-25000.0,0.000218,2]
[385960205,1758156634487,-2205.3604,0.00021808,2]
[385960206,1758156634497,-1000.0,0.00021817,2]
[385960207,1758156634507,-2945.0602,0.00021817,2]
[385960208,1758156634517,-5000.0,0.00021817,2]
[385960209,1758156634527,-9141.07605166,0.00021817,2]
[385960210,1758156634537,-293.23158286,0.00021817,2]
[385960211,1758156634547,-302.685404,0.00021817,2]
[385960212,1758156634556,-13108.04780983,0.00021817,2]
[385960213,1758156634566,-168.38223959,0.00021817,2]
[385960214,1758156634575,-161.96825644,0.00021838,2]
[385960215,1758156634585,-946.95428799,0.00021838,2]
[385960216,1758156634594,-500.0,0.00021838,2]
[385960217,1758156634604,-500.0,0.00021838,2]
[385960218,1758156634613,-500.0,0.00021838,2]
[385960219,1758156634623,-500.0,0.00021838,2]
[385960220,1758156634633,-2420.0,0.00021838,2]
[385960221,1758156634643,-500.0,0.00021838,2]
[385960222,1758156634653,-150.0,0.00021838,2]
[385960223,1758156634663,-500.0,0.00021838,2]
[385960224,1758156634672,-522.0,0.00021838,2]
[385960225,1758156634682,-500.0,0.00021838,2]
[385960226,1758156634691,-500.0,0.00021838,2]
[385960227,1758156634700,-150.0,0.00021838,2]
[385960228,1758156634710,-150.0,0.00021838,2]
[385960229,1758156634719,-150.0,0.00021838,2]
[385960230,1758156634729,-500.0,0.00021838,2]
[385960231,1758156634738,-150.0,0.00021838,2]
[385960232,1758156634748,-150.0,0.00021861,2]
[385960233,1758156634758,-1986.681,0.00021872,2]
[385960234,1758156634767,-150.0,0.00021872,2]
[385960235,1758156634777,-7240.0,0.000219,2]
[385960236,1758156634786,-392.08,0.000219,2]
[385960237,1758156634796,-235.13,0.00021901,2]
[385960238,1758156634806,-500.0,0.00021904,2]
[385960239,1758156634815,-150.0,0.00021904,2]
[385960240,1758156634827,-500.0,0.00021904,2]
[385960241,1758156634837,-500.0,0.00021904,2]
[385960242,1758156634846,-500.0,0.00021904,2]
[385960243,1758156634856,-500.0,0.00021904,2]
[385960244,1758156634867,-500.0,0.00021904,2]
[385960245,1758156634876,-150.0,0.00021904,2]
[385960246,1758156634885,-150.0,0.00021904,2]
[385960247,1758156634896,-500.0,0.00021904,2]
[385960248,1758156634905,-500.0,0.00021904,2]
[385960249,1758156634915,-150.0,0.00021904,2]
[385960250,1758156634925,-150.0,0.00021904,2]
[385960251,1758156634934,-150.0,0.00021904,2]
[385960252,1758156634943,-500.0,0.00021904,2]
[385960253,1758156634953,-500.0,0.00021904,2]
[385960254,1758156634962,-500.0,0.00021904,2]
[385960255,1758156634972,-150.0,0.00021904,2]
[385960256,1758156634981,-500.0,0.00021904,2]
[385960257,1758156634990,-150.0,0.00021904,2]
[385960258,1758156635000,-150.0,0.00021904,2]
[385960259,1758156635009,-150.0,0.00021904,2]
[385960260,1758156635019,-162.66,0.00021907,2]
[385960261,1758156635029,-272.57,0.00021907,2]
[385960262,1758156635038,-272.57,0.00021907,2]
[385960263,1758156635047,-393.10947332,0.00021907,2]
[385960264,1758156635057,-487.77121514,0.00021916,2]
[385960265,1758156635066,-155.0,0.00021916,2]
[385960266,1758156635075,-300.0,0.00021916,2]
[385960267,1758156635084,-213.18994792,0.00021917,3]
[385960268,1758156635094,-29522.46111655,0.00021917,2]
[385960269,1758156635103,-516.07479255,0.00021917,3]
[385960270,1758156635116,-20959.78340555,0.00021917,3]
[385960271,1758156635158,-15410.41661599,0.00021917,3]
[385960272,1758156635170,-31928.21504189,0.00021917,3]
[385960273,1758156635182,-2102.56303897,0.00021917,3]
[385960274,1758156635213,-433.60154784,0.00021917,3]
[385960275,1758156635241,-45864.93106717,0.00021917,3]
[385960276,1758156638552,-150.0,0.00021419,2]
[385960277,1758156638562,-150.0,0.00021419,2]
[385960278,1758156638571,-156.43511601,0.00021419,2]
[385960279,1758156638581,-500.0,0.0002143,2]
[385960280,1758156638591,-500.0,0.0002143,2]
[385960281,1758156638600,-500.0,0.0002143,2]
[385960282,1758156638609,-500.0,0.0002143,2]
[385960283,1758156638619,-500.0,0.0002143,2]
[385960284,1758156638629,-500.0,0.0002143,2]
[385960285,1758156638639,-500.0,0.0002143,2]
[385960286,1758156638648,-252.31091261,0.0002143,2]
[385960287,1758156638657,-500.0,0.0002143,2]
[385960288,1758156638667,-500.0,0.0002143,2]
[385960289,1758156638676,-150.0,0.00021693,2]
[385960290,1758156638686,-500.0,0.00021693,2]
[385960291,1758156638695,-52747.27312742,0.00021917,3]
[385960292,1758156638705,-160.0,0.00021917,3]
[385960293,1758156638714,-400.0,0.00021917,2]
[385960294,1758156638724,-279.54239139,0.00021917,2]
[385960295,1758156638733,-237.67765409,0.00021917,2]
[385960296,1758156638743,-400.0,0.00021917,2]
[385960297,1758156638752,-400.0,0.00021917,2]
[385960298,1758156638762,-400.0,0.00021917,2]
[385960299,1758156638772,-400.0,0.00021917,2]
[385960300,1758156638781,-175822.4184665,0.00021917,2]
[385960301,1758156638791,-400.0,0.00021917,2]
[385960302,1758156638800,-400.0,0.00021917,2]
[385960303,1758156638809,-401.38721565,0.00021917,2]
[385960304,1758156638819,-400.0,0.00021917,2]
[385960305,1758156638834,-400.0,0.00021917,2]
[385960306,1758156638844,-400.0,0.00021917,2]
[385960307,1758156638853,-400.85423064,0.00021917,2]
[385960308,1758156638863,-401.29505799,0.00021917,2]
[385960310,1758156638874,-400.0,0.00021917,2]
[385960312,1758156638883,-400.0,0.00021917,2]
[385960314,1758156638894,-400.0,0.00021917,2]
[385960316,1758156638905,-400.0,0.00021917,2]
[385960318,1758156638915,-400.0,0.00021917,2]
[385960320,1758156638924,-400.0,0.00021917,2]
[385960322,1758156638934,-300.34120483,0.00021917,2]
[385960324,1758156638943,-400.0,0.00021917,2]
[385960326,1758156638953,-184.90656621,0.00021917,2]
[385960328,1758156638963,-400.0,0.00021917,2]
[385960330,1758156638972,-400.0,0.00021917,2]
[385960332,1758156638982,-245.882668,0.00021917,2]
[385960334,1758156638992,-168.490053,0.00021917,2]
[385960336,1758156639001,-400.0,0.00021917,2]
[385960338,1758156639010,-400.0,0.00021917,2]
[385960340,1758156639020,-200.0,0.00021917,2]
[385960342,1758156639029,-400.0,0.00021917,2]
[385960344,1758156639039,-400.0,0.00021917,2]
[385960346,1758156639049,-400.0,0.00021917,2]
[385960348,1758156639058,-400.0,0.00021917,2]
[385960350,1758156639067,-400.0,0.00021917,2]
[385960352,1758156639077,-414.03114629,0.00021917,2]
[385960367,1758156639320,-400.0,0.00021917,2]
[385960369,1758156639331,-400.0,0.00021917,2]
[385960371,1758156639340,-400.0,0.00021917,2]
[385960373,1758156639350,-400.0,0.00021917,2]
[385960375,1758156639360,-400.0,0.00021917,2]
[385960378,1758156639371,-197.75780388,0.00021917,2]
[385960379,1758156639380,-151.77921337,0.00021917,2]
[385960381,1758156639389,-400.0,0.00021917,2]
[385960383,1758156639398,-400.0,0.00021917,2]
[385960385,1758156639408,-400.0,0.00021917,2]
[385960387,1758156639417,-400.0,0.00021917,2]
[385960389,1758156639426,-400.0,0.00021917,2]
[385960391,1758156639435,-400.0,0.00021917,2]
[385960394,1758156639445,-152.017829,0.00021917,2]
[385960395,1758156639454,-400.0,0.00021917,2]
[385960397,1758156639463,-400.0,0.00021917,2]